[Event "Early-Titled-Tuesday-Blitz-January-23-2024"]
[Site "Chess.com"]
[Date "2024.01.23"]
[Round "11"]
[White "Muslim_player_05"]
[Black "LeRoidesChampions"]
[Result "1-0"]
[WhiteElo "2521"]
[BlackElo "2610"]
[TimeControl "180+1"]
[EndTime "10:08:44 PST"]
[Termination "Muslim_player_05 won by resignation"]

1. d4 {[%clk 0:03:00.9]} 1... Nf6 {[%clk 0:02:59.7]} 2. c4 {[%clk 0:03:00.3]}
2... e5 {[%clk 0:02:59.4]} 3. dxe5 {[%clk 0:03:00]} 3... Ng4 {[%clk 0:02:59.4]}
4. Nc3 {[%clk 0:02:59.9]} 4... Nxe5 {[%clk 0:02:57.8]} 5. e3 {[%clk 0:02:59.8]}
5... b6 {[%clk 0:02:49.4]} 6. f4 {[%clk 0:02:56.2]} 6... Ng6 {[%clk 0:02:47.5]}
7. Bd3 {[%clk 0:02:44.7]} 7... Nc6 {[%clk 0:02:47.1]} 8. Qh5 {[%clk 0:02:43]}
8... Bb7 {[%clk 0:02:46.3]} 9. Nf3 {[%clk 0:02:42.2]} 9... Bb4 {[%clk
0:02:39.1]} 10. Bd2 {[%clk 0:02:41.1]} 10... Qe7 {[%clk 0:02:31]} 11. Kf2 {[%clk
0:02:02.1]} 11... Bxc3 {[%clk 0:02:14.6]} 12. Bxc3 {[%clk 0:02:03]} 12... O-O-O
{[%clk 0:02:14.8]} 13. Bxg7 {[%clk 0:01:58.8]} 13... Rhg8 {[%clk 0:02:14]} 14.
Bc3 {[%clk 0:01:56.4]} 14... Nb4 {[%clk 0:02:11.2]} 15. Bxb4 {[%clk 0:01:22.9]}
15... Qxb4 {[%clk 0:02:10.1]} 16. Qb5 {[%clk 0:01:23.3]} 16... Qe7 {[%clk
0:02:05.7]} 17. g3 {[%clk 0:01:12.4]} 17... Rde8 {[%clk 0:01:51.5]} 18. Rhe1
{[%clk 0:01:09.5]} 18... Qd6 {[%clk 0:01:50.9]} 19. Rad1 {[%clk 0:01:04.6]}
19... a6 {[%clk 0:01:47.1]} 20. Qa4 {[%clk 0:00:52.1]} 20... Qc5 {[%clk
0:01:33.9]} 21. b4 {[%clk 0:00:45.7]} 21... Qh5 {[%clk 0:01:32.6]} 22. Qxd7+
{[%clk 0:00:40.1]} 22... Kb8 {[%clk 0:01:29.9]} 23. e4 {[%clk 0:00:30.7]} 23...
Bc8 {[%clk 0:01:25.2]} 24. Qd5 {[%clk 0:00:27]} 24... Qh3 {[%clk 0:01:20.8]} 25.
Bf1 {[%clk 0:00:25.7]} 25... Qh6 {[%clk 0:01:12.9]} 26. c5 {[%clk 0:00:24.6]}
26... Bb7 {[%clk 0:01:08.7]} 27. Qg5 {[%clk 0:00:18.8]} 27... Qg7 {[%clk
0:01:06.1]} 28. cxb6 {[%clk 0:00:18.8]} 28... cxb6 {[%clk 0:01:05]} 29. f5
{[%clk 0:00:16.1]} 29... h6 {[%clk 0:00:39.5]} 30. Qe3 {[%clk 0:00:10.4]} 30...
Rxe4 {[%clk 0:00:38.3]} 31. Qxb6 {[%clk 0:00:09.1]} 31... Qb2+ {[%clk
0:00:36.6]} 32. Rd2 {[%clk 0:00:08.4]} 32... Qc3 {[%clk 0:00:33.5]} 33. Rxe4
{[%clk 0:00:07.1]} 33... Ne7 {[%clk 0:00:26]} 34. Rxe7 {[%clk 0:00:03.1]} 34...
Qxf3+ {[%clk 0:00:25.7]} 35. Ke1 {[%clk 0:00:03.8]} 35... Rc8 {[%clk 0:00:21]}
36. Qxb7+ {[%clk 0:00:03.3]} 36... Qxb7 {[%clk 0:00:21.3]} 37. Rxb7+ {[%clk
0:00:04.2]} 37... Kxb7 {[%clk 0:00:22.2]} 38. Rd7+ {[%clk 0:00:04.6]} 38... Kb6
{[%clk 0:00:22.5]} 39. Rd6+ {[%clk 0:00:05]} 39... Kc7 {[%clk 0:00:20.6]} 40.
Rxa6 {[%clk 0:00:04.7]} 40... Re8+ {[%clk 0:00:21.2]} 41. Kf2 {[%clk 0:00:04.4]}
41... Re5 {[%clk 0:00:22.1]} 42. Rxh6 {[%clk 0:00:04.1]} 42... Rxf5+ {[%clk
0:00:22.3]} 43. Kg2 {[%clk 0:00:05]} 43... Rd5 {[%clk 0:00:20.7]} 44. b5 {[%clk
0:00:05.9]} 44... Rd2+ {[%clk 0:00:20.4]} 45. Kg1 {[%clk 0:00:06.5]} 45... Rxa2
{[%clk 0:00:21.3]} 46. b6+ {[%clk 0:00:07.1]} 46... Kb8 {[%clk 0:00:20.2]} 47.
Bg2 {[%clk 0:00:06.7]} 47... Ra1+ {[%clk 0:00:20.7]} 48. Kf2 {[%clk 0:00:07.3]}
48... Ra2+ {[%clk 0:00:21.4]} 49. Kf1 {[%clk 0:00:07.6]} 49... Ra1+ {[%clk
0:00:21.4]} 50. Kf2 {[%clk 0:00:08.1]} 50... Ra2+ {[%clk 0:00:22]} 51. Kf3
{[%clk 0:00:08.7]} 51... f5 {[%clk 0:00:22.3]} 52. Bh1 {[%clk 0:00:08.2]} 52...
Ra1 {[%clk 0:00:21.3]} 53. Bg2 {[%clk 0:00:08.4]} 53... Ra2 {[%clk 0:00:21.5]}
54. g4 {[%clk 0:00:09.1]} 54... f4 {[%clk 0:00:16.9]} 55. g5 {[%clk 0:00:09.4]}
55... Kb7 {[%clk 0:00:15]} 56. g6 {[%clk 0:00:09.9]} 56... Ra8 {[%clk
0:00:09.7]} 57. Kxf4+ {[%clk 0:00:09.8]} 1-0

[Event "Early-Titled-Tuesday-Blitz-January-23-2024"]
[Site "Chess.com"]
[Date "2024.01.23"]
[Round "11"]
[White "artooon"]
[Black "vladislavkovalev"]
[Result "1/2-1/2"]
[WhiteElo "2984"]
[BlackElo "2869"]
[TimeControl "180+1"]
[EndTime "10:08:51 PST"]
[Termination "Game drawn - insufficient material"]

1. e4 {[%clk 0:02:56.8]} 1... e5 {[%clk 0:03:00]} 2. Nf3 {[%clk 0:02:56.6]} 2...
Nc6 {[%clk 0:03:00.5]} 3. Bc4 {[%clk 0:02:56.7]} 3... Nf6 {[%clk 0:03:00.2]} 4.
Ng5 {[%clk 0:02:56.6]} 4... d5 {[%clk 0:03:00.4]} 5. exd5 {[%clk 0:02:57.5]}
5... Na5 {[%clk 0:03:00.7]} 6. Bb5+ {[%clk 0:02:57.4]} 6... c6 {[%clk
0:03:01.3]} 7. dxc6 {[%clk 0:02:58.3]} 7... bxc6 {[%clk 0:03:02.2]} 8. Bd3
{[%clk 0:02:58.5]} 8... Nd5 {[%clk 0:03:02.5]} 9. Nf3 {[%clk 0:02:54.6]} 9...
Bd6 {[%clk 0:03:02.1]} 10. O-O {[%clk 0:02:55.3]} 10... O-O {[%clk 0:03:02.7]}
11. Re1 {[%clk 0:02:55.8]} 11... f5 {[%clk 0:03:03.4]} 12. Nxe5 {[%clk
0:02:56.3]} 12... Qf6 {[%clk 0:03:04.2]} 13. Nf3 {[%clk 0:02:56]} 13... g5
{[%clk 0:03:04.6]} 14. c4 {[%clk 0:02:56.6]} 14... Nf4 {[%clk 0:02:44.5]} 15.
Bf1 {[%clk 0:02:56.3]} 15... g4 {[%clk 0:02:45.2]} 16. d4 {[%clk 0:02:57]} 16...
gxf3 {[%clk 0:02:45]} 17. Qxf3 {[%clk 0:02:57.9]} 17... Ne6 {[%clk 0:02:39]} 18.
Qc3 {[%clk 0:02:56.4]} 18... Rb8 {[%clk 0:01:58.5]} 19. c5 {[%clk 0:02:24.3]}
19... Bc7 {[%clk 0:01:52.7]} 20. b4 {[%clk 0:02:17.8]} 20... Qxd4 {[%clk
0:01:26.2]} 21. bxa5 {[%clk 0:01:37.2]} 21... Qxc3 {[%clk 0:00:46.5]} 22. Nxc3
{[%clk 0:01:38.1]} 22... Bxa5 {[%clk 0:00:47.3]} 23. Re3 {[%clk 0:01:14.8]}
23... f4 {[%clk 0:00:44.9]} 24. Rf3 {[%clk 0:01:12.7]} 24... Ng5 {[%clk
0:00:05]} 25. Bc4+ {[%clk 0:01:02.3]} 25... Kg7 {[%clk 0:00:05.3]} 26. Ne2
{[%clk 0:00:39.5]} 26... Nxf3+ {[%clk 0:00:04.9]} 27. gxf3 {[%clk 0:00:40.4]}
27... Re8 {[%clk 0:00:03.2]} 28. Bxf4 {[%clk 0:00:35.5]} 28... Rb4 {[%clk
0:00:02.8]} 29. Bd3 {[%clk 0:00:20.7]} 29... Rxe2 {[%clk 0:00:03]} 30. Bxe2
{[%clk 0:00:20.5]} 30... Rxf4 {[%clk 0:00:03.6]} 31. Rb1 {[%clk 0:00:21.4]}
31... Bc7 {[%clk 0:00:03.1]} 32. Rb3 {[%clk 0:00:20.3]} 32... Rf5 {[%clk
0:00:03.2]} 33. Ra3 {[%clk 0:00:19.8]} 33... a5 {[%clk 0:00:03.1]} 34. Rc3
{[%clk 0:00:20.5]} 34... Rg5+ {[%clk 0:00:03.9]} 35. Kf1 {[%clk 0:00:19.1]}
35... Bxh2 {[%clk 0:00:03.8]} 36. Bd3 {[%clk 0:00:18.2]} 36... Bf4 {[%clk
0:00:03.9]} 37. Rc4 {[%clk 0:00:18.1]} 37... Bc7 {[%clk 0:00:01.9]} 38. Rh4
{[%clk 0:00:19]} 38... h5 {[%clk 0:00:02.1]} 39. Re4 {[%clk 0:00:19.6]} 39...
Kf6 {[%clk 0:00:01.9]} 40. Re8 {[%clk 0:00:19.5]} 40... Bf5 {[%clk 0:00:01.4]}
41. Bxf5 {[%clk 0:00:17.3]} 41... Rxf5 {[%clk 0:00:01.6]} 42. Rc8 {[%clk
0:00:18.2]} 42... Ke6 {[%clk 0:00:01.9]} 43. Rxc7 {[%clk 0:00:18.5]} 43... Rxc5
{[%clk 0:00:02.8]} 44. Kg2 {[%clk 0:00:18.2]} 44... Kd6 {[%clk 0:00:03.1]} 45.
Ra7 {[%clk 0:00:18.2]} 45... Rf5 {[%clk 0:00:03.1]} 46. Kg3 {[%clk 0:00:18.6]}
46... Rg5+ {[%clk 0:00:03]} 47. Kh4 {[%clk 0:00:18.8]} 47... Rf5 {[%clk
0:00:03.6]} 48. Kg3 {[%clk 0:00:19.1]} 48... Re5 {[%clk 0:00:03.1]} 49. f4
{[%clk 0:00:19.5]} 49... Rf5 {[%clk 0:00:03.5]} 50. Kf3 {[%clk 0:00:20]} 50...
Rc5 {[%clk 0:00:03.4]} 51. Ke4 {[%clk 0:00:20.2]} 51... Rc4+ {[%clk 0:00:02.8]}
52. Kf5 {[%clk 0:00:20.5]} 52... Rc2 {[%clk 0:00:03.6]} 53. Rxa5 {[%clk
0:00:17.6]} 53... Rxf2 {[%clk 0:00:04.3]} 54. Kg5 {[%clk 0:00:18.2]} 54... h4
{[%clk 0:00:05]} 55. Ra3 {[%clk 0:00:17.7]} 55... c5 {[%clk 0:00:04.3]} 56. Rd3+
{[%clk 0:00:15.6]} 56... Kc6 {[%clk 0:00:04.6]} 57. a4 {[%clk 0:00:14.9]} 57...
c4 {[%clk 0:00:05]} 58. Rh3 {[%clk 0:00:15.1]} 58... Kc5 {[%clk 0:00:04.9]} 59.
f5 {[%clk 0:00:15.4]} 59... Kb4 {[%clk 0:00:05]} 60. Rxh4 {[%clk 0:00:15.6]}
60... Kb3 {[%clk 0:00:03.7]} 61. f6 {[%clk 0:00:15.2]} 61... c3 {[%clk
0:00:03.1]} 62. Kg6 {[%clk 0:00:13.3]} 62... c2 {[%clk 0:00:02.9]} 63. Rh1
{[%clk 0:00:13.3]} 63... Kxa4 {[%clk 0:00:03.7]} 64. f7 {[%clk 0:00:13.3]} 64...
Kb3 {[%clk 0:00:04.5]} 65. Kg7 {[%clk 0:00:13.6]} 65... Kb2 {[%clk 0:00:04.9]}
66. f8=Q {[%clk 0:00:13.6]} 66... Rxf8 {[%clk 0:00:05.8]} 67. Kxf8 {[%clk
0:00:14.5]} 67... c1=Q {[%clk 0:00:06.3]} 68. Rxc1 {[%clk 0:00:15.2]} 68... Kxc1
{[%clk 0:00:07.2]} 1/2-1/2

[Event "Early-Titled-Tuesday-Blitz-January-23-2024"]
[Site "Chess.com"]
[Date "2024.01.23"]
[Round "11"]
[White "wadsy27"]
[Black "andrzej"]
[Result "1-0"]
[WhiteElo "2662"]
[BlackElo "2410"]
[TimeControl "180+1"]
[EndTime "10:08:55 PST"]
[Termination "wadsy27 won by resignation"]

1. c4 {[%clk 0:03:00.9]} 1... e6 {[%clk 0:02:59.7]} 2. g3 {[%clk 0:03:00.8]}
2... d5 {[%clk 0:03:00.2]} 3. Bg2 {[%clk 0:03:01.3]} 3... Nf6 {[%clk 0:03:00.8]}
4. Nf3 {[%clk 0:03:01.7]} 4... dxc4 {[%clk 0:03:00.6]} 5. Qa4+ {[%clk
0:03:00.8]} 5... Bd7 {[%clk 0:03:01]} 6. Qxc4 {[%clk 0:02:58.9]} 6... c5 {[%clk
0:03:01.6]} 7. Ne5 {[%clk 0:02:57.9]} 7... Qc8 {[%clk 0:03:02.1]} 8. O-O {[%clk
0:02:52.7]} 8... Nc6 {[%clk 0:03:02.1]} 9. Nxd7 {[%clk 0:02:53]} 9... Qxd7
{[%clk 0:03:03]} 10. Nc3 {[%clk 0:02:53.3]} 10... Rc8 {[%clk 0:02:59.9]} 11. d3
{[%clk 0:02:45.3]} 11... b6 {[%clk 0:02:59.9]} 12. Qa4 {[%clk 0:02:40.4]} 12...
Be7 {[%clk 0:02:58.2]} 13. Bd2 {[%clk 0:02:35.7]} 13... O-O {[%clk 0:02:58]} 14.
Rfc1 {[%clk 0:02:34]} 14... Rfd8 {[%clk 0:02:58]} 15. Rab1 {[%clk 0:02:28.3]}
15... h5 {[%clk 0:02:56]} 16. a3 {[%clk 0:02:19.8]} 16... Ne8 {[%clk 0:02:15.5]}
17. b4 {[%clk 0:02:11.9]} 17... h4 {[%clk 0:01:50.5]} 18. bxc5 {[%clk
0:02:05.6]} 18... hxg3 {[%clk 0:01:50.4]} 19. hxg3 {[%clk 0:01:56.2]} 19... Bxc5
{[%clk 0:01:50.7]} 20. Ne4 {[%clk 0:01:55.5]} 20... Nd4 {[%clk 0:01:13.7]} 21.
Qxd7 {[%clk 0:01:53.6]} 21... Rxd7 {[%clk 0:01:14]} 22. Nxc5 {[%clk 0:01:48.1]}
22... bxc5 {[%clk 0:01:14]} 23. Kf1 {[%clk 0:01:44.7]} 23... Nd6 {[%clk
0:01:06.7]} 24. e3 {[%clk 0:01:20.2]} 24... N4f5 {[%clk 0:01:03.7]} 25. d4
{[%clk 0:01:08.9]} 25... cxd4 {[%clk 0:00:46.5]} 26. Rxc8+ {[%clk 0:01:00.6]}
26... Nxc8 {[%clk 0:00:47.4]} 27. Rb8 {[%clk 0:00:58.4]} 27... Ne7 {[%clk
0:00:47.3]} 28. Bb4 {[%clk 0:00:53.6]} 28... Kh7 {[%clk 0:00:41.9]} 29. exd4
{[%clk 0:00:40.6]} 29... Rxd4 {[%clk 0:00:35]} 30. Bxe7 {[%clk 0:00:37.6]} 30...
Nxe7 {[%clk 0:00:35.9]} 31. Rb7 {[%clk 0:00:37.6]} 31... Nf5 {[%clk 0:00:19.8]}
32. Rxa7 {[%clk 0:00:31.5]} 32... Kg6 {[%clk 0:00:20.3]} 33. Bf3 {[%clk
0:00:27.2]} 33... Kf6 {[%clk 0:00:17]} 34. a4 {[%clk 0:00:25.4]} 34... g5 {[%clk
0:00:17.4]} 35. a5 {[%clk 0:00:22.4]} 35... g4 {[%clk 0:00:17.9]} 36. Be2 {[%clk
0:00:22.5]} 36... Ra4 {[%clk 0:00:17.3]} 37. a6 {[%clk 0:00:22.2]} 37... Nd4
{[%clk 0:00:17.6]} 38. Bxg4 {[%clk 0:00:18.4]} 38... Nb5 {[%clk 0:00:17.7]} 39.
Rb7 {[%clk 0:00:16.6]} 39... Rxg4 {[%clk 0:00:16.1]} 40. Rxb5 {[%clk 0:00:16.7]}
40... Ra4 {[%clk 0:00:16.8]} 41. Rb6 {[%clk 0:00:17.1]} 41... Kf5 {[%clk
0:00:16.4]} 42. Kg2 {[%clk 0:00:15.5]} 42... Ra3 {[%clk 0:00:16.5]} 43. Rb7
{[%clk 0:00:13.2]} 43... f6 {[%clk 0:00:16.5]} 44. a7 {[%clk 0:00:12.2]} 44...
e5 {[%clk 0:00:16.8]} 45. f3 {[%clk 0:00:11.5]} 45... Kg6 {[%clk 0:00:15.6]} 46.
g4 {[%clk 0:00:11.5]} 46... Kg5 {[%clk 0:00:15.1]} 47. Rf7 {[%clk 0:00:10.5]}
47... Kg6 {[%clk 0:00:14.8]} 48. Rb7 {[%clk 0:00:10.1]} 48... Kg5 {[%clk
0:00:15.1]} 49. Kf2 {[%clk 0:00:10.3]} 49... Kg6 {[%clk 0:00:15.3]} 50. Ke2
{[%clk 0:00:10.5]} 50... Kg5 {[%clk 0:00:15.6]} 51. Kd2 {[%clk 0:00:10.1]} 51...
e4 {[%clk 0:00:15.2]} 52. fxe4 {[%clk 0:00:09.5]} 52... Kxg4 {[%clk 0:00:15.6]}
53. Re7 {[%clk 0:00:09.3]} 53... Kf4 {[%clk 0:00:14.8]} 54. Kc2 {[%clk
0:00:09.6]} 54... f5 {[%clk 0:00:11.7]} 55. exf5 {[%clk 0:00:09.1]} 55... Kxf5
{[%clk 0:00:12.3]} 56. Kb2 {[%clk 0:00:09.7]} 56... Ra6 {[%clk 0:00:12.5]} 57.
Kb3 {[%clk 0:00:10.1]} 57... Kf6 {[%clk 0:00:13.1]} 58. Rh7 {[%clk 0:00:10.2]}
58... Ra1 {[%clk 0:00:10.7]} 59. Kb4 {[%clk 0:00:10.3]} 59... Ke6 {[%clk
0:00:10.7]} 60. Kc5 {[%clk 0:00:10.5]} 60... Ra2 {[%clk 0:00:09.4]} 61. Kc6
{[%clk 0:00:10.3]} 61... Rc2+ {[%clk 0:00:08.9]} 62. Kb7 {[%clk 0:00:10.6]}
62... Rb2+ {[%clk 0:00:09.2]} 63. Kc8 {[%clk 0:00:10.9]} 63... Ra2 {[%clk
0:00:08]} 64. Kb8 {[%clk 0:00:11.1]} 64... Kd6 {[%clk 0:00:06]} 65. a8=Q {[%clk
0:00:10.6]} 65... Rb2+ {[%clk 0:00:06.4]} 66. Qb7 {[%clk 0:00:10.3]} 1-0

[Event "Early-Titled-Tuesday-Blitz-January-23-2024"]
[Site "Chess.com"]
[Date "2024.01.23"]
[Round "11"]
[White "Carlitus2004"]
[Black "yobdc"]
[Result "1/2-1/2"]
[WhiteElo "2401"]
[BlackElo "2524"]
[TimeControl "180+1"]
[EndTime "10:08:55 PST"]
[Termination "Game drawn by repetition"]

1. e4 {[%clk 0:03:00.9]} 1... c6 {[%clk 0:03:00.1]} 2. Nf3 {[%clk 0:02:57.6]}
2... g6 {[%clk 0:02:58.3]} 3. d4 {[%clk 0:02:54.2]} 3... Bg7 {[%clk 0:02:58.7]}
4. c3 {[%clk 0:02:53.7]} 4... d5 {[%clk 0:02:58.2]} 5. exd5 {[%clk 0:02:49]}
5... cxd5 {[%clk 0:02:58.4]} 6. Bd3 {[%clk 0:02:47.3]} 6... Bg4 {[%clk
0:02:58.2]} 7. Bf4 {[%clk 0:02:45]} 7... Nc6 {[%clk 0:02:57.6]} 8. Nbd2 {[%clk
0:02:44.2]} 8... e6 {[%clk 0:02:44.3]} 9. O-O {[%clk 0:02:42.8]} 9... Nge7
{[%clk 0:02:43.3]} 10. Re1 {[%clk 0:02:37.4]} 10... O-O {[%clk 0:02:42.8]} 11.
h3 {[%clk 0:02:35.8]} 11... Bxf3 {[%clk 0:02:41.1]} 12. Nxf3 {[%clk 0:02:36.2]}
12... Rc8 {[%clk 0:02:38.5]} 13. Qd2 {[%clk 0:02:34]} 13... Qd7 {[%clk
0:02:37.1]} 14. h4 {[%clk 0:02:29]} 14... h5 {[%clk 0:02:29.8]} 15. Bg5 {[%clk
0:02:21.2]} 15... Rfe8 {[%clk 0:02:25.6]} 16. g3 {[%clk 0:02:21]} 16... Nf5
{[%clk 0:02:23.1]} 17. Kg2 {[%clk 0:02:21.2]} 17... f6 {[%clk 0:02:11.2]} 18.
Be3 {[%clk 0:01:51.2]} 18... Nce7 {[%clk 0:02:02.8]} 19. Bf4 {[%clk 0:01:48.5]}
19... Nc6 {[%clk 0:01:46.4]} 20. Bxf5 {[%clk 0:01:36.3]} 20... exf5 {[%clk
0:01:46.7]} 21. Bh6 {[%clk 0:01:37]} 21... Re4 {[%clk 0:01:44.7]} 22. Bf4 {[%clk
0:01:33.2]} 22... Rce8 {[%clk 0:01:44.4]} 23. Rad1 {[%clk 0:01:28.9]} 23... Bf8
{[%clk 0:01:41.6]} 24. Qc1 {[%clk 0:01:22.7]} 24... Qe6 {[%clk 0:01:22.8]} 25.
Kf1 {[%clk 0:01:20.5]} 25... Kh7 {[%clk 0:01:11.3]} 26. Nd2 {[%clk 0:01:19.7]}
26... Re2 {[%clk 0:01:09.8]} 27. Be3 {[%clk 0:01:14.7]} 27... Rxe1+ {[%clk
0:01:01.9]} 28. Rxe1 {[%clk 0:01:15.6]} 28... Bd6 {[%clk 0:00:53.4]} 29. Bf4
{[%clk 0:01:08.4]} 29... Qxe1+ {[%clk 0:00:52]} 30. Qxe1 {[%clk 0:01:09.3]}
30... Rxe1+ {[%clk 0:00:52.3]} 31. Kxe1 {[%clk 0:01:10.2]} 31... Bxf4 {[%clk
0:00:52.5]} 32. gxf4 {[%clk 0:01:11.1]} 32... Nd8 {[%clk 0:00:50.1]} 33. Ke2
{[%clk 0:01:05.1]} 33... Ne6 {[%clk 0:00:48.6]} 34. Ke3 {[%clk 0:01:04.2]} 34...
Kg7 {[%clk 0:00:46]} 35. b3 {[%clk 0:01:02.4]} 35... Kf7 {[%clk 0:00:40.7]} 36.
c4 {[%clk 0:01:02.1]} 36... Ke7 {[%clk 0:00:40.3]} 37. Nb1 {[%clk 0:00:43.5]}
37... Kd6 {[%clk 0:00:30.5]} 38. Nc3 {[%clk 0:00:43.9]} 38... dxc4 {[%clk
0:00:29.8]} 39. bxc4 {[%clk 0:00:44.8]} 39... a6 {[%clk 0:00:29.8]} 40. Ne2
{[%clk 0:00:44]} 40... b5 {[%clk 0:00:28.1]} 41. Kd3 {[%clk 0:00:42.3]} 41...
Nc7 {[%clk 0:00:22.3]} 42. Nc3 {[%clk 0:00:34.8]} 42... Kc6 {[%clk 0:00:20.6]}
43. Ne2 {[%clk 0:00:20.1]} 43... bxc4+ {[%clk 0:00:20.4]} 44. Kxc4 {[%clk
0:00:20.6]} 44... Nd5 {[%clk 0:00:20.8]} 45. a3 {[%clk 0:00:20.3]} 45... Nb6+
{[%clk 0:00:20.7]} 46. Kd3 {[%clk 0:00:18.3]} 46... Nd5 {[%clk 0:00:20.9]} 47.
Kc4 {[%clk 0:00:17.8]} 47... a5 {[%clk 0:00:19.5]} 48. Kd3 {[%clk 0:00:14.6]}
48... Kb6 {[%clk 0:00:14.4]} 49. Kc4 {[%clk 0:00:13.8]} 49... Kc6 {[%clk
0:00:14.6]} 50. Kd3 {[%clk 0:00:14.1]} 50... Kd6 {[%clk 0:00:09.1]} 51. Kc4
{[%clk 0:00:13.7]} 51... Nc7 {[%clk 0:00:08.4]} 52. Nc3 {[%clk 0:00:10]} 52...
Ne6 {[%clk 0:00:08.2]} 53. Nd5 {[%clk 0:00:10.2]} 53... g5 {[%clk 0:00:07.6]}
54. fxg5 {[%clk 0:00:06.2]} 54... fxg5 {[%clk 0:00:08.5]} 55. hxg5 {[%clk
0:00:06.9]} 55... Nxg5 {[%clk 0:00:09]} 56. Nf4 {[%clk 0:00:05.6]} 56... h4
{[%clk 0:00:09.1]} 57. Kb5 {[%clk 0:00:03.6]} 57... Ne4 {[%clk 0:00:08.8]} 58.
f3 {[%clk 0:00:03.3]} 58... Nd2 {[%clk 0:00:08.1]} 59. Kxa5 {[%clk 0:00:02.8]}
59... Nxf3 {[%clk 0:00:08.4]} 60. Kb6 {[%clk 0:00:02.4]} 60... Nxd4 {[%clk
0:00:08.2]} 61. a4 {[%clk 0:00:03.1]} 61... Nb3 {[%clk 0:00:08.5]} 62. a5 {[%clk
0:00:03.3]} 62... Nxa5 {[%clk 0:00:07.5]} 63. Kxa5 {[%clk 0:00:04.2]} 63... Kc5
{[%clk 0:00:07.2]} 64. Ka4 {[%clk 0:00:04.2]} 64... Kd4 {[%clk 0:00:07.4]} 65.
Kb3 {[%clk 0:00:04.8]} 65... Ke4 {[%clk 0:00:07.4]} 66. Nh3 {[%clk 0:00:04.7]}
66... Kf3 {[%clk 0:00:07.4]} 67. Kc2 {[%clk 0:00:04.6]} 67... Kg2 {[%clk
0:00:07.9]} 68. Nf4+ {[%clk 0:00:02.3]} 68... Kg3 {[%clk 0:00:07.4]} 69. Ne2+
{[%clk 0:00:02.1]} 69... Kf2 {[%clk 0:00:07.5]} 70. Nf4 {[%clk 0:00:02.2]} 70...
Kf3 {[%clk 0:00:08]} 71. Nh3 {[%clk 0:00:02.5]} 71... Kg2 {[%clk 0:00:07.7]} 72.
Nf4+ {[%clk 0:00:02.7]} 72... Kg3 {[%clk 0:00:08.3]} 73. Ne2+ {[%clk 0:00:03]}
73... Kf2 {[%clk 0:00:08]} 74. Nf4 {[%clk 0:00:03.3]} 74... Kf3 {[%clk
0:00:07.6]} 75. Nh3 {[%clk 0:00:03.7]} 1/2-1/2